bitfinex/quotes_BTCUSD_20251205
["timestamp","ask_amount","ask_price","bid_price","bid_amount"]
[1764959215981,0.24070218,89395.0,89394.0,0.07262107]
[1764959216361,0.24270218,89395.0,89394.0,0.07262107]
[1764959216762,0.24270218,89395.0,89394.0,0.05069]
[1764959216763,0.24070218,89395.0,89394.0,0.05069]
[1764959217084,0.24070218,89395.0,89394.0,0.05169]
[1764959217242,0.24070218,89395.0,89394.0,0.07162107]
[1764959217445,0.22570218,89395.0,89394.0,0.01996]
[1764959217658,0.24170218,89395.0,89394.0,0.003]
[1764959217868,5.64502517,89395.0,89394.0,0.003]
[1764959218184,5.64502517,89395.0,89367.0,0.00095456]
[1764959218185,0.28631674,89368.0,89367.0,0.00095456]
[1764959218390,0.38432236,89368.0,89367.0,0.00095456]
[1764959218737,0.60931674,89368.0,89367.0,0.00095456]
[1764959218966,5.60931674,89368.0,89367.0,0.00095456]
[1764959219298,5.60931674,89368.0,89367.0,0.0013517]
[1764959219498,2.95891674,89368.0,89367.0,0.0013517]
[1764959219721,5.60931674,89368.0,89367.0,0.0013517]
[1764959219927,5.7190218,89368.0,89367.0,0.0013517]
[1764959220468,3.7027218,89368.0,89367.0,0.0013517]
[1764959220597,3.58171674,89368.0,89367.0,0.0013517]
[1764959220835,3.58171674,89368.0,89317.0,0.05185867]
[1764959220836,0.01119519,89324.0,89317.0,0.05185867]
[1764959221091,0.223909,89322.0,89320.0,0.01464911]
[1764959221544,0.01119519,89324.0,89320.0,0.02584481]
[1764959221691,0.01119482,89327.0,89323.0,0.01896]
[1764959221904,0.22389559,89328.0,89326.0,0.04089107]
[1764959222133,0.01119394,89334.0,89328.0,0.01896]
[1764959222331,0.23508204,89331.0,89329.0,0.01896]
[1764959222527,0.23508204,89331.0,89330.0,0.02193107]
[1764959222771,0.01119432,89331.0,89330.0,0.02193107]
[1764959222983,0.01119432,89331.0,89329.0,0.02193107]
[1764959223137,0.23508878,89328.0,89327.0,0.02193107]
[1764959223367,0.23508878,89328.0,89320.0,0.00211911]
[1764959223368,0.22391151,89321.0,89320.0,0.00211911]
[1764959223579,0.22391151,89321.0,89320.0,0.00011911]
[1764959223799,0.2864345,89321.0,89320.0,0.00011911]
[1764959224022,0.33643315,89321.0,89320.0,0.00011911]
[1764959224440,0.33643315,89321.0,89320.0,0.00511911]
[1764959224652,0.33804602,89321.0,89320.0,0.00011911]
[1764959224852,0.29004737,89321.0,89320.0,0.00011911]
[1764959225063,0.30404737,89321.0,89320.0,0.00211911]
[1764959227017,0.23991151,89321.0,89320.0,0.02160911]
[1764959228197,0.23991151,89321.0,89320.0,0.00211911]
[1764959228617,0.3024345,89321.0,89320.0,0.00211911]
[1764959228829,0.40482041,89321.0,89320.0,0.00211911]
[1764959229233,0.40482041,89321.0,89320.0,0.00354295]
[1764959229476,0.30404737,89321.0,89320.0,0.00354295]
[1764959230401,5.30204737,89321.0,89320.0,0.00354295]
[1764959230620,0.77634737,89321.0,89320.0,0.00354295]
[1764959230836,0.61404737,89321.0,89320.0,0.00154295]
[1764959231048,0.63184737,89321.0,89320.0,0.00154295]
[1764959231254,0.65184737,89321.0,89320.0,0.00354295]
[1764959231475,0.32884737,89321.0,89320.0,0.00354295]
[1764959231690,0.24852438,89321.0,89320.0,0.00354295]
[1764959232123,0.31104737,89321.0,89320.0,0.00354295]
[1764959232553,0.24852438,89321.0,89320.0,0.02303295]
[1764959232816,0.24391151,89321.0,89320.0,0.00354295]
[1764959233266,0.24691151,89321.0,89320.0,0.00354295]
[1764959233822,0.22391151,89321.0,89320.0,0.02103295]
[1764959233961,0.22591151,89321.0,89320.0,0.02103295]
[1764959234161,0.23591151,89321.0,89320.0,0.02203295]
[1764959234573,0.23591151,89321.0,89320.0,0.04938295]
[1764959234785,0.23591151,89321.0,89320.0,0.02203295]
[1764959234957,0.23591151,89321.0,89320.0,0.00254295]
[1764959235157,0.012,89321.0,89320.0,0.04938295]
[1764959235799,0.012,89321.0,89320.0,0.27329696]
[1764959236026,0.012,89321.0,89320.0,0.29522803]
[1764959236566,0.012,89321.0,89320.0,0.31306803]
[1764959237108,0.002,89321.0,89320.0,0.63506803]
[1764959237308,0.004,89321.0,89320.0,0.64106803]
[1764959237510,0.23506255,89338.0,89335.0,0.2350692]
[1764959237751,0.23505379,89342.0,89337.0,0.04459357]
[1764959237943,0.23505379,89342.0,89341.0,0.02193107]
[1764959238154,0.23505379,89342.0,89341.0,0.04142107]
[1764959238352,0.23505379,89342.0,89341.0,0.06877107]
[1764959238556,0.23505379,89342.0,89341.0,0.04142107]
[1764959238715,0.23505379,89342.0,89341.0,0.06877107]
[1764959239099,0.22384253,89349.0,89342.0,0.01119294]
[1764959239100,0.01119219,89348.0,89342.0,0.01119294]
[1764959239309,0.01119181,89351.0,89348.0,0.05261326]
[1764959239508,0.01119181,89351.0,89350.0,0.0334]
[1764959239930,0.01119181,89351.0,89350.0,0.05533107]
[1764959240207,0.01119181,89351.0,89350.0,0.0334]
[1764959240404,8.438e-05,89351.0,89350.0,0.29577979]
[1764959240613,8.438e-05,89351.0,89350.0,0.31771086]
[1764959240873,0.01008438,89351.0,89350.0,0.31971086]
[1764959241048,0.01008438,89351.0,89350.0,0.29777979]
[1764959241252,0.01008438,89351.0,89350.0,0.31971086]
[1764959241485,0.01008438,89351.0,89350.0,0.31771086]
[1764959241700,0.00208438,89351.0,89350.0,0.31771086]
[1764959241917,0.00408438,89351.0,89350.0,0.32571086]
[1764959242810,0.00408438,89351.0,89350.0,0.09068107]
[1764959242967,0.00408438,89351.0,89350.0,0.06875]
[1764959243167,0.00208438,89351.0,89350.0,0.09068107]
[1764959243593,8.438e-05,89351.0,89350.0,0.08468107]
[1764959243972,0.00208438,89351.0,89350.0,0.09368107]
[1764959244230,0.00208438,89351.0,89350.0,0.08268107]
[1764959244375,0.00208438,89351.0,89350.0,0.08368107]
[1764959244569,0.00408438,89351.0,89350.0,0.09268107]
[1764959244791,8.438e-05,89351.0,89350.0,0.08368107]
[1764959245012,0.22392071,89351.0,89350.0,0.08268107]
[1764959245214,0.00208438,89351.0,89350.0,0.09268107]
[1764959246985,0.22592071,89351.0,89350.0,0.09268107]
[1764959247816,0.22592071,89351.0,89350.0,0.24148107]
[1764959248037,0.00208438,89351.0,89350.0,0.24148107]
[1764959248253,0.00208438,89351.0,89350.0,0.2419959]
[1764959249203,0.22592071,89351.0,89350.0,0.19271483]
[1764959249406,0.22592071,89351.0,89350.0,0.17322483]
[1764959249729,0.22592071,89351.0,89350.0,0.19271483]
[1764959250404,0.22592071,89351.0,89350.0,0.22006483]
[1764959250702,0.22592071,89351.0,89350.0,0.2419959]
[1764959252742,0.22592071,89351.0,89350.0,0.2146459]
[1764959252984,0.38315498,89351.0,89350.0,0.01051483]
[1764959253824,0.38315498,89351.0,89350.0,0.00951483]
[1764959254027,0.38315498,89351.0,89350.0,0.00051483]
[1764959254028,0.38115498,89351.0,89350.0,0.00051483]
[1764959254234,0.38215498,89351.0,89350.0,0.00051483]
[1764959254438,0.39415498,89351.0,89350.0,0.00251483]
[1764959254639,0.39315498,89351.0,89350.0,0.00251483]
[1764959255195,0.30005657,89351.0,89350.0,0.00251483]
[1764959256085,0.30305657,89351.0,89350.0,0.00251483]
[1764959257829,0.24053358,89351.0,89350.0,0.00251483]
[1764959258032,0.24053358,89351.0,89350.0,0.04774483]
[1764959258751,0.01508438,89351.0,89350.0,0.04774483]
[1764959258954,0.01208438,89351.0,89350.0,0.27158366]
[1764959259134,0.01208438,89351.0,89350.0,0.04774483]
[1764959259341,0.23792071,89351.0,89350.0,0.04774483]
[1764959259539,0.23792071,89351.0,89350.0,0.02094483]
[1764959259987,0.22592071,89351.0,89350.0,0.01894483]
[1764959260120,0.22592071,89351.0,89350.0,0.04574483]
[1764959260327,0.23492071,89351.0,89350.0,0.04774483]
[1764959261370,0.23492071,89351.0,89350.0,0.02094483]
[1764959261571,0.23492071,89351.0,89350.0,0.00251483]
[1764959261572,0.26865943,89351.0,89350.0,0.00251483]
[1764959261745,0.33118242,89351.0,89350.0,0.00251483]
[1764959261961,0.29738439,89351.0,89350.0,0.00251483]
[1764959262335,0.29899726,89351.0,89350.0,0.00251483]
[1764959264549,5.63245791,89351.0,89350.0,0.00251483]
[1764959264701,0.22393908,89310.0,89307.0,0.0268]
[1764959264930,0.0111967,89312.0,89297.0,0.04012]
[1764959264931,0.22396918,89298.0,89297.0,0.04012]
[1764959265124,0.22396918,89298.0,89297.0,0.03175]
[1764959265859,0.22396918,89298.0,89297.0,0.03186911]
[1764959266436,0.22396918,89298.0,89297.0,0.05866911]
[1764959266636,0.22396465,89300.0,89298.0,0.01119845]
[1764959266844,0.23516285,89300.0,89299.0,0.01843]
[1764959267253,0.23516285,89300.0,89299.0,0.04453]
[1764959267573,0.23516285,89300.0,89299.0,0.01843]
[1764959268718,0.23516285,89300.0,89299.0,0.04453]
[1764959269505,0.22396918,89298.0,89297.0,0.01343911]
[1764959269934,0.22396918,89298.0,89297.0,0.03187911]
[1764959270154,0.23516285,89300.0,89299.0,0.02193107]
[1764959270155,0.003,89300.0,89299.0,0.02193107]
[1764959270292,0.01119645,89314.0,89309.0,0.01243942]
[1764959270490,0.23512575,89314.0,89311.0,0.01119682]
[1764959270792,0.22392295,89317.0,89313.0,0.04266657]
[1764959271017,0.22392295,89317.0,89316.0,0.01844]
[1764959271396,0.22392295,89317.0,89316.0,0.04454]
[1764959271619,0.01119582,89319.0,89316.0,0.04454]
[1764959271836,0.23511234,89319.0,89318.0,0.01844]
[1764959272185,0.23511234,89319.0,89307.0,0.73289625]
[1764959272186,0.22396667,89299.0,89297.0,0.01343911]
[1764959272657,0.22396667,89299.0,89298.0,0.19334]
[1764959273916,0.22396667,89299.0,89298.0,0.19434]
[1764959274118,0.22696667,89299.0,89298.0,0.19434]
[1764959275635,0.22696667,89299.0,89298.0,0.1498]
[1764959276016,0.22696667,89299.0,89298.0,0.16824]
[1764959276425,0.22696667,89299.0,89298.0,0.16981585]
[1764959276623,0.22696667,89299.0,89298.0,0.16881585]
[1764959276835,0.22396667,89299.0,89298.0,0.16981585]
[1764959277187,0.22696667,89299.0,89298.0,0.16981585]
[1764959277745,0.22696667,89299.0,89298.0,0.04711585]
[1764959279507,0.22696667,89299.0,89298.0,0.02101585]
[1764959280537,0.22696667,89299.0,89298.0,0.04711585]
[1764959284821,0.22696667,89299.0,89298.0,0.02101585]
[1764959285016,0.22696667,89299.0,89298.0,0.00257585]
[1764959285699,0.22857954,89299.0,89298.0,0.00257585]
[1764959286097,0.22857954,89299.0,89298.0,0.00157585]
[1764959286397,0.22757954,89299.0,89298.0,0.00157585]
[1764959287266,0.29010253,89299.0,89298.0,0.00157585]
[1764959287660,5.52800253,89299.0,89298.0,0.00157585]
[1764959287884,1.22110759,89299.0,89298.0,0.00157585]
[1764959288093,0.28810253,89299.0,89298.0,0.00157585]
[1764959288315,0.31194253,89299.0,89298.0,0.00157585]
[1764959288533,0.31394253,89299.0,89298.0,0.00157585]
[1764959288947,0.29410253,89299.0,89298.0,0.00157585]
[1764959289169,0.23157954,89299.0,89298.0,0.01833585]
[1764959289367,0.22857954,89299.0,89298.0,0.01833585]
[1764959289784,0.23757954,89299.0,89298.0,0.01833585]
[1764959289983,0.22557954,89299.0,89298.0,0.01833585]
[1764959290197,0.22550681,89299.0,89298.0,0.01833585]
[1764959290396,0.22550681,89299.0,89298.0,0.04434585]
[1764959290548,0.22550681,89299.0,89298.0,0.06627692]
[1764959290755,0.23089394,89299.0,89298.0,0.04434585]
[1764959291099,0.23096667,89299.0,89298.0,0.06627692]
[1764959291327,0.009,89299.0,89298.0,0.06627692]
[1764959291881,0.23096667,89299.0,89298.0,0.06627692]
[1764959292419,0.22396667,89299.0,89298.0,0.06827692]
[1764959292776,0.003,89299.0,89298.0,0.06827692]
[1764959292999,0.23516026,89301.0,89298.0,0.27031503]
[1764959293183,0.22395993,89302.0,89298.0,0.27031503]
[1764959293184,0.22395921,89302.0,89300.0,0.01676]
[1764959293381,0.22395921,89302.0,89301.0,0.01676]
[1764959293786,0.22395921,89302.0,89301.0,0.04277]
[1764959293990,0.23513608,89310.0,89304.0,0.0111977]
[1764959294220,0.0111962,89316.0,89309.0,0.01676]
[1764959294421,0.01119657,89313.0,89310.0,0.01676]
[1764959294633,0.22393658,89311.0,89310.0,0.04794107]
[1764959295037,0.22393658,89311.0,89310.0,0.06470107]
[1764959295241,0.22393658,89311.0,89310.0,0.04277]
[1764959295989,0.22593658,89311.0,89310.0,0.06470107]
[1764959296140,0.23293658,89311.0,89310.0,0.06470107]
[1764959296340,0.23293658,89311.0,89310.0,0.04277]
[1764959297195,0.23293658,89311.0,89310.0,0.06470107]
[1764959297417,0.23293658,89311.0,89310.0,0.04277]
[1764959297619,0.22593658,89311.0,89310.0,0.06470107]
[1764959298027,0.22393658,89311.0,89310.0,0.06470107]
[1764959298459,0.22393658,89311.0,89310.0,0.21450107]
[1764959298873,0.22393658,89311.0,89310.0,0.2157131]
[1764959299491,0.22393658,89311.0,89310.0,0.19378203]
[1764959299697,0.22693658,89311.0,89310.0,0.04498203]
[1764959300431,0.22693658,89311.0,89310.0,0.0669131]
[1764959300854,0.003,89311.0,89310.0,0.29085218]
[1764959301073,0.003,89311.0,89310.0,0.0669131]
[1764959301467,0.003,89311.0,89310.0,0.29085218]
[1764959302484,0.003,89311.0,89310.0,0.0669131]
[1764959302692,0.22693658,89311.0,89310.0,0.0669131]
[1764959305593,0.003,89311.0,89310.0,0.0669131]
[1764959305978,0.003,89311.0,89310.0,0.29085218]
[1764959306398,0.003,89311.0,89310.0,0.0669131]
[1764959306675,0.22693658,89311.0,89310.0,0.0669131]
[1764959306952,0.22693658,89311.0,89310.0,0.03681203]
[1764959307318,0.22693658,89311.0,89310.0,0.06282203]
[1764959307676,0.22693658,89311.0,89310.0,0.01897203]
[1764959307876,0.22693658,89311.0,89310.0,0.04498203]
[1764959308458,0.22693658,89311.0,89310.0,0.00121203]
[1764959308880,0.22393658,89311.0,89310.0,0.00121203]
[1764959309081,0.22393658,89311.0,89310.0,0.01797203]
[1764959309297,0.22593658,89311.0,89310.0,0.01797203]
[1764959309505,0.22393658,89311.0,89310.0,0.04398203]
[1764959309918,0.22693658,89311.0,89310.0,0.0659131]
[1764959310104,0.22693658,89311.0,89310.0,0.04398203]
[1764959310320,0.003,89311.0,89310.0,0.26792111]
[1764959310529,0.003,89311.0,89310.0,0.0669131]
[1764959310684,0.01119645,89314.0,89310.0,0.28011806]
[1764959310888,0.01119432,89331.0,89324.0,0.01119519]
[1764959311165,0.01119432,89331.0,89313.0,0.01676]
[1764959311166,0.23508564,89330.0,89329.0,0.02193107]
[1764959311604,0.23507971,89332.0,89331.0,0.02193107]
[1764959311771,0.01280656,89336.0,89333.0,0.02193107]
[1764959311977,0.23668047,89336.0,89335.0,0.03869107]
[1764959312182,0.01119369,89336.0,89335.0,0.04277]
[1764959312417,0.2350676,89336.0,89335.0,0.04277]
[1764959313275,0.2380676,89336.0,89335.0,0.06470107]
[1764959313468,0.2380676,89336.0,89335.0,0.04277]
[1764959313854,0.2380676,89336.0,89335.0,0.06470107]
[1764959314049,0.2380676,89336.0,89335.0,0.04277]
[1764959314265,0.003,89336.0,89335.0,0.28957749]
[1764959314637,0.003,89336.0,89335.0,0.26764642]
[1764959314837,0.003,89336.0,89335.0,0.28957749]
[1764959315835,0.003,89336.0,89335.0,0.61257749]
[1764959316427,0.01119244,89346.0,89345.0,0.02193107]
[1764959316630,0.23503633,89348.0,89347.0,0.02193107]
[1764959316848,0.23503417,89349.0,89348.0,0.02193107]
[1764959317046,0.23503417,89349.0,89348.0,0.06465107]
[1764959317808,0.22384122,89350.0,89349.0,0.02193107]
[1764959318026,0.01119131,89355.0,89352.0,0.02193107]
[1764959318227,0.01119131,89355.0,89349.0,0.04272]
[1764959318228,0.23502025,89354.0,89353.0,0.02193107]
[1764959318384,0.22383382,89352.0,89350.0,0.01723]
[1764959318581,0.01119156,89353.0,89351.0,0.04272]
[1764959318876,0.01119144,89354.0,89352.0,0.24106351]
[1764959319103,0.23502064,89354.0,89353.0,0.01723]
[1764959319424,0.23502064,89354.0,89353.0,0.04272]
[1764959319690,0.01119068,89360.0,89353.0,0.05391156]
[1764959319863,0.23500317,89361.0,89360.0,0.02193107]
[1764959320097,0.23500317,89361.0,89360.0,0.03916107]
[1764959320313,0.22380903,89362.0,89360.0,0.04272]
[1764959320513,0.01119006,89365.0,89363.0,0.01723]
[1764959320715,0.01119006,89365.0,89361.0,0.02549]
[1764959320716,0.01119018,89364.0,89361.0,0.02549]
[1764959320899,0.01119081,89359.0,89355.0,0.01119131]
[1764959321207,0.01119106,89357.0,89355.0,0.24943522]
[1764959321418,0.23501023,89358.0,89355.0,0.24943508]
[1764959321542,0.23501023,89358.0,89355.0,0.22394508]
[1764959321739,0.23501023,89358.0,89357.0,0.01723]
[1764959322147,2.0420832,89400.0,89357.0,0.27773082]
[1764959322148,0.22380208,89365.0,89357.0,0.27773082]
[1764959322345,0.22380208,89365.0,89363.0,0.01723]
[1764959322552,0.23499394,89364.0,89363.0,0.03916107]
[1764959322953,0.23499394,89364.0,89363.0,0.01723]
[1764959324315,0.23599394,89364.0,89363.0,0.01823]
[1764959324514,0.28177,89360.0,89355.0,0.2351354]
[1764959324730,0.22381963,89358.0,89357.0,0.02193107]
[1764959325474,0.28177,89360.0,89359.0,0.22381629]
[1764959325677,0.28177,89360.0,89359.0,0.26297736]
[1764959325880,0.28177,89360.0,89359.0,0.28846736]
[1764959326434,0.28177,89360.0,89359.0,0.30626736]
[1764959326775,0.50658378,89360.0,89359.0,0.08445107]
[1764959327348,0.50658378,89360.0,89359.0,0.04472]
[1764959327515,0.50819665,89360.0,89359.0,0.01923]
[1764959327816,0.50819665,89360.0,89359.0,0.003]
[1764959328216,0.50819665,89360.0,89359.0,0.02002]
[1764959328422,0.50819665,89360.0,89359.0,0.003]
[1764959328423,0.61790171,89360.0,89359.0,0.003]
[1764959328627,0.50819665,89360.0,89359.0,0.003]
[1764959330769,0.50819665,89360.0,89359.0,0.02002]
[1764959331359,0.50819665,89360.0,89359.0,0.04473]
[1764959332700,0.28438287,89360.0,89359.0,0.04473]
[1764959332865,0.28277,89360.0,89359.0,0.28634629]
[1764959333066,0.28277,89360.0,89359.0,0.30827736]
[1764959333877,0.28277,89360.0,89359.0,0.08446107]
[1764959334077,0.50658378,89360.0,89359.0,0.08446107]
[1764959334323,0.28277,89360.0,89359.0,0.08446107]
[1764959335192,0.28277,89360.0,89359.0,0.30827736]
[1764959338027,0.28277,89360.0,89359.0,0.63127736]
[1764959340889,0.28277,89360.0,89359.0,0.78007736]
[1764959341103,0.01118543,89402.0,89397.0,0.01118605]
[1764959341313,0.0111838,89415.0,89399.0,0.03023]
[1764959341526,0.01118318,89420.0,89399.0,0.35323]
[1764959341733,0.01118355,89417.0,89408.0,0.24562469]
[1764959341938,0.01118418,89412.0,89409.0,0.03482]
[1764959342140,0.22368694,89411.0,89409.0,0.05953]
[1764959342348,0.0005971,89410.0,89409.0,0.05953]
[1764959342551,0.0005971,89410.0,89409.0,0.08146107]
[1764959342961,0.0165971,89410.0,89409.0,0.08146107]
[1764959343367,0.0005971,89410.0,89409.0,0.08146107]
[1764959343602,0.0015971,89410.0,89409.0,0.08246107]
[1764959343803,0.0015971,89410.0,89409.0,0.08446107]
[1764959344012,0.0005971,89410.0,89409.0,0.08346107]
[1764959344184,0.0005971,89410.0,89409.0,0.08146107]
[1764959344594,0.0005971,89410.0,89409.0,0.08346107]
[1764959345556,0.0005971,89410.0,89409.0,0.06566107]
[1764959345758,0.0015971,89410.0,89409.0,0.08546107]
[1764959345929,0.0015971,89410.0,89409.0,0.04573]
[1764959346132,0.0005971,89410.0,89409.0,0.04273]
[1764959346362,0.0005971,89410.0,89409.0,0.01802]
[1764959346566,0.00320997,89410.0,89409.0,0.01902]
[1764959347185,0.00320997,89410.0,89409.0,0.04513]
[1764959347527,0.00454148,89410.0,89409.0,0.01902]
[1764959347934,0.00454148,89410.0,89409.0,0.002]
[1764959348449,0.00454148,89410.0,89409.0,0.04406]
[1764959349262,0.00454148,89410.0,89409.0,0.01795]
[1764959349947,0.00292861,89410.0,89409.0,0.04406]
[1764959350171,0.00292861,89410.0,89409.0,0.06599107]
[1764959350401,0.22366217,89421.0,89409.0,0.06599107]
[1764959350402,0.0111823,89427.0,89426.0,0.02193107]
[1764959350602,0.01130137,89427.0,89423.0,0.23483846]
[1764959350815,0.00011907,89427.0,89426.0,0.05049107]
[1764959351281,0.00011907,89427.0,89426.0,0.05467]
[1764959351499,0.00011907,89427.0,89426.0,0.02856]
[1764959352670,0.00211907,89427.0,89426.0,0.02856]
[1764959353259,0.22576517,89427.0,89426.0,0.02856]
[1764959353697,0.24276517,89427.0,89426.0,0.03056]
[1764959354110,0.24437804,89427.0,89426.0,0.03056]
[1764959354328,0.24237804,89427.0,89426.0,0.03056]
[1764959354917,0.22537804,89427.0,89426.0,0.02856]
[1764959355304,0.24037804,89427.0,89426.0,0.03056]
[1764959355814,0.24237804,89427.0,89426.0,0.03056]
[1764959356062,0.24289226,89427.0,89426.0,0.01461]
[1764959356468,0.24289226,89427.0,89426.0,0.002]
[1764959357200,0.24289226,89427.0,89426.0,0.04406]
[1764959357419,0.01763329,89427.0,89426.0,0.2677086]
[1764959357618,0.01763329,89427.0,89426.0,0.28963967]
[1764959357820,0.01763329,89427.0,89426.0,0.2677086]
[1764959358039,0.01763329,89427.0,89426.0,0.28963967]
[1764959358232,0.01763329,89427.0,89426.0,0.04406]
[1764959359047,0.24127939,89427.0,89426.0,0.04406]
[1764959359264,0.24127939,89427.0,89426.0,0.06186]
[1764959359867,0.01763329,89427.0,89426.0,0.06186]
[1764959360081,0.01763329,89427.0,89426.0,0.08379107]
[1764959360281,0.24127939,89427.0,89426.0,0.002]
[1764959360487,0.24127939,89427.0,89426.0,0.01795]
[1764959360787,0.24127939,89427.0,89426.0,0.002]
[1764959360788,0.24289226,89427.0,89426.0,0.002]
[1764959361228,0.24289226,89427.0,89426.0,0.01795]
[1764959362890,0.24289226,89427.0,89426.0,0.002]
[1764959363475,0.01924616,89427.0,89426.0,0.04406]
[1764959363706,0.01763329,89427.0,89426.0,0.2677086]
[1764959363948,0.01763329,89427.0,89426.0,0.28963967]
[1764959365629,0.01763329,89427.0,89426.0,0.61263967]
[1764959366530,0.00063329,89427.0,89426.0,0.61063967]
[1764959366738,0.00063329,89427.0,89426.0,0.75943967]
[1764959366915,0.00163329,89427.0,89426.0,0.76743967]
[1764959368110,0.00063329,89427.0,89426.0,0.76143967]
[1764959368490,0.00163329,89427.0,89426.0,0.76343967]
[1764959368682,0.00163329,89427.0,89426.0,0.76543967]
[1764959368942,0.00163329,89427.0,89426.0,1.26543967]
[1764959369348,0.00163329,89427.0,89426.0,1.30520077]
[1764959370381,0.00163329,89427.0,89426.0,1.11663967]
[1764959372672,0.00163329,89427.0,89426.0,1.15639068]
[1764959373525,0.00163329,89427.0,89426.0,1.11663967]
[1764959375508,0.00163329,89427.0,89426.0,1.26543967]
[1764959376152,0.00163329,89427.0,89426.0,1.2435086]
[1764959376408,0.00163329,89427.0,89426.0,1.28323967]
[1764959377638,0.00163329,89427.0,89426.0,1.13443967]
[1764959378416,0.00163329,89427.0,89426.0,1.15689052]
[1764959378652,0.00163329,89427.0,89426.0,1.19664153]
[1764959379404,0.00163329,89427.0,89426.0,1.15689052]
[1764959381326,0.00163329,89427.0,89426.0,1.30569052]
[1764959382331,0.00163329,89427.0,89426.0,1.26543967]
[1764959382532,0.00163329,89427.0,89426.0,1.28323967]
[1764959382754,0.00163329,89427.0,89426.0,1.26543967]
[1764959382951,0.00163329,89427.0,89426.0,1.28323967]
[1764959384053,0.0002,89450.0,89439.0,0.56854716]
[1764959384255,0.0002,89450.0,89439.0,0.77626801]
[1764959384462,0.0002,89450.0,89439.0,0.80410801]
[1764959384691,0.0002,89450.0,89439.0,0.84387714]
[1764959385086,0.0002,89450.0,89439.0,0.80410801]
[1764959385266,0.0002,89450.0,89439.0,0.866631]
[1764959385666,0.0012,89440.0,89439.0,0.79230801]
[1764959386056,0.0012,89440.0,89439.0,0.81210801]
[1764959386501,0.0012,89440.0,89439.0,0.81010801]
[1764959386858,0.0012,89440.0,89439.0,0.81210801]
[1764959387439,0.0002,89440.0,89439.0,0.80610801]
[1764959387737,0.0012,89440.0,89439.0,0.79330801]
[1764959387936,0.0012,89440.0,89439.0,0.80610801]
[1764959387937,0.0002,89440.0,89439.0,0.80610801]
[1764959388087,0.0002,89440.0,89439.0,0.78630801]
[1764959388275,0.0012,89440.0,89439.0,0.80710801]
[1764959388501,0.0012,89440.0,89439.0,0.80910801]
[1764959389704,0.00159314,89440.0,89439.0,0.74101716]
[1764959389876,0.2268196,89440.0,89439.0,0.005]
[1764959390682,0.2268196,89440.0,89439.0,0.002]
[1764959390884,0.2258196,89440.0,89439.0,0.002]
[1764959391084,0.2278196,89440.0,89439.0,0.003]
[1764959391282,0.2278196,89440.0,89439.0,0.001]
[1764959391485,0.22361859,89438.0,89437.0,0.01354]
[1764959391928,0.22361859,89438.0,89437.0,0.06005]
[1764959392090,0.00033266,89438.0,89437.0,0.31678321]
[1764959392275,0.00033266,89438.0,89437.0,0.08198107]
[1764959392688,0.01118205,89429.0,89428.0,0.02193107]
[1764959392887,0.01118205,89429.0,89426.0,0.5]
[1764959392888,0.2236461,89427.0,89426.0,0.5]
[1764959393347,0.2236461,89427.0,89426.0,0.51849]
[1764959394291,0.2236461,89427.0,89426.0,0.53625]
[1764959394683,0.2246461,89427.0,89426.0,0.55818107]
[1764959395118,0.2236461,89427.0,89426.0,0.55818107]
[1764959395326,0.003,89427.0,89426.0,0.54843243]
[1764959395527,0.003,89427.0,89426.0,0.8210321]
[1764959395800,0.003,89427.0,89426.0,0.8200321]
[1764959396117,0.003,89427.0,89426.0,0.80884967]
[1764959396262,0.003,89427.0,89426.0,0.80984967]
[1764959396458,0.003,89427.0,89426.0,1.13284967]
[1764959396671,0.003,89427.0,89426.0,1.13184967]
[1764959397099,0.00024195,89435.0,89426.0,1.13184967]
[1764959397100,0.00024195,89435.0,89434.0,0.24555966]
[1764959397305,0.00024195,89435.0,89434.0,0.26404966]
[1764959397510,0.00024195,89435.0,89434.0,0.29006966]
[1764959398566,0.00124195,89435.0,89434.0,0.29006966]
[1764959398822,0.00124195,89435.0,89434.0,0.61306966]
[1764959399041,0.00124195,89435.0,89434.0,0.65282967]
[1764959399244,0.00124195,89435.0,89434.0,0.61306966]
[1764959399476,0.00124195,89435.0,89434.0,0.61406966]
[1764959399864,0.00124195,89435.0,89434.0,0.65387699]
[1764959400267,0.00124195,89435.0,89434.0,0.61406966]
[1764959401015,0.00124195,89435.0,89434.0,0.65387699]
[1764959401293,0.00124195,89435.0,89434.0,0.61406966]
[1764959401877,0.00124195,89435.0,89434.0,0.6538719]
[1764959402275,0.00124195,89435.0,89434.0,0.8026719]
[1764959402476,0.00124195,89435.0,89434.0,0.76286966]
[1764959402863,0.22486804,89435.0,89434.0,0.16829]
[1764959403074,0.22486804,89435.0,89434.0,0.16756]
[1764959403280,0.22486804,89435.0,89434.0,0.1498]
[1764959403480,0.22486804,89435.0,89434.0,0.16746]
[1764959403691,0.22648091,89435.0,89434.0,0.001]
[1764959404734,0.2236461,89427.0,89426.0,0.5]
[1764959404937,0.22525897,89427.0,89426.0,0.5]
[1764959405180,3.44048196,89427.0,89426.0,0.5]
[1764959405381,3.14458196,89427.0,89426.0,0.5]
[1764959406239,5.61078196,89427.0,89426.0,0.5]
[1764959406557,5.72048702,89427.0,89426.0,0.501]
[1764959406915,5.61078196,89427.0,89426.0,0.501]
[1764959407111,0.22525897,89427.0,89426.0,0.501]
[1764959407315,0.22525897,89427.0,89426.0,0.51866]
[1764959407536,0.24525897,89427.0,89426.0,0.54709]
[1764959407778,0.22525897,89427.0,89426.0,0.54409]
[1764959407980,0.01118205,89429.0,89426.0,0.54409]
[1764959407981,0.23482556,89429.0,89426.0,0.54409]
[1764959408139,0.004,89427.0,89426.0,0.5]
[1764959408724,0.004,89427.0,89426.0,0.8216121]
[1764959408725,0.024,89427.0,89426.0,0.8216121]
[1764959408935,0.00024195,89435.0,89434.0,0.24555966]
[1764959409167,0.00024195,89435.0,89434.0,0.26321966]
[1764959409373,0.00024195,89435.0,89434.0,0.28964966]
[1764959409983,0.00024195,89435.0,89434.0,0.31210051]
[1764959410207,0.00024195,89435.0,89434.0,0.63510051]
[1764959410406,0.0111783,89459.0,89434.0,0.63510051]
[1764959410407,0.223544,89468.0,89447.0,0.0111798]
[1764959410619,0.01117668,89472.0,89459.0,0.24549717]
[1764959410823,0.00031896,89460.0,89459.0,0.28091717]
[1764959411023,0.00031896,89460.0,89459.0,0.30734717]
[1764959411233,0.00031896,89460.0,89459.0,0.08378107]
[1764959411855,0.00031896,89460.0,89459.0,0.06602107]
[1764959412058,0.00031896,89460.0,89459.0,0.08378107]
[1764959412260,0.00431896,89460.0,89459.0,0.08478107]
[1764959412432,0.00431896,89460.0,89459.0,0.08578107]
[1764959413307,0.00431896,89460.0,89459.0,0.40878107]
[1764959413889,0.00031896,89460.0,89459.0,0.40778107]
[1764959414336,0.00031896,89460.0,89459.0,0.41178107]